Cogmind - Beta 16 @@@ ROGUE MODE // 2025.10.29 @ 22:25:58 Player: DoubleCorvid Result: Destroyed by G-47 Trooper with Particle Gun Performance ------------- Evolutions (2) 1000 Regions Visited (3) 600 Robots Destroyed (56) 280 Value Destroyed (1800) 1800 Prototype IDs (4) 80 Alien Tech Used (0) 0 Bonus (0) 0 TOTAL SCORE: 3760 Bonus ------- None Cogmind --------- Core Integrity 0/550 Matter 300/300 Energy 160/160 System Corruption 6% Temperature Cool (9) Movement Walking (120) Location -8/Materials Parts ------- > --- POWER (2) -------- Light Nuclear Core > --- PROPULSION (3) --- Aluminum Leg > --- UTILITY (3) ------ Improved Heat Sink Improved Heat Sink > --- WEAPON (3) ------- (None) > --- INVENTORY (5) ---- Medium Matter Pod (100) Peak State ------------ > --- POWER ------------ Light Ion Engine Light Nuclear Core > --- PROPULSION ------- Light Treads Light Treads Compact Wheel > --- UTILITY ---------- Improved Heat Sink Hardened Light Armor Plating Hardened Medium Armor Plating > --- WEAPON ----------- Heavy Laser Heavy Assault Rifle Mini Grenade Launcher > --- INVENTORY -------- Medium Matter Pod Beam Cannon Beam Cannon Shotgun Shotgun [Rating: 23] Favorites ----------- Power Ion Engine Engine Ion Engine Power Core Light Nuclear Core Propulsion Light Treads Treads Light Treads Leg Improved Aluminum Leg Wheel Wheel Utility Hardened Light Armor Plating Device Sensor Array Storage Small Storage Unit Protection Hardened Light Armor Plating Weapon Heavy Assault Rifle Energy Gun Heavy Laser Energy Cannon Beam Cannon Ballistic Gun Heavy Assault Rifle Launcher Rocket Launcher Special Melee Weapon Datajack Build | -11 -10 -9 -8 ------- Run | Yrd Mat Mat Mat Slots Evolved 4 | . . 2 2 Power 1 | . . 1 . Propulsion 1 | . . . 1 Utility 1 | . . . 1 Weapon 1 | . . 1 . Parts Attached 48 | 6 4 7 31 Power 7 | 1 1 . 5 Engine 4 | 1 1 . 2 Core 3 | . . . 3 Reactor . | . . . . Propulsion 13 | 2 . 2 9 Treads 6 | . . . 6 Leg 4 | . . 2 2 Wheel 3 | 2 . . 1 Hover . | . . . . Flight . | . . . . Utility 10 | 1 2 1 6 Device 5 | . 1 . 4 Storage 1 | 1 . . . Processor . | . . . . Hackware . | . . . . Protection 4 | . 1 1 2 Artifact . | . . . . Weapon 18 | 2 1 4 11 Energy Gun 6 | 1 . 1 4 Energy Cannon 2 | . . . 2 Ballistic Gun 6 | 1 1 2 2 Ballistic Cannon . | . . . . Launcher 2 | . . 1 1 Special Weapon . | . . . . Impact Weapon . | . . . . Slashing Weapon . | . . . . Piercing Weapon . | . . . . Special Melee Weapon 2 | . . . 2 Unidentified Prototypes . | . . . . Parts Lost 29 | . . 1 28 Power 3 | . . . 3 Propulsion 7 | . . 1 6 Utility 6 | . . . 6 Weapon 13 | . . . 13 Highest Loss Streak 12 | . . 1 12 To Critical Strikes . | . . . . Average Backups 4 | 1 4 5 4 Power . | . . . . Propulsion . | . 2 2 . Utility . | . . 1 . Weapon 2 | . 1 1 3 Tool/Special . | . . . . Unused Backups 8 | . 2 3 3 Power . | . . . . Propulsion 2 | . 2 . . Utility 5 | . . 3 2 Weapon 1 | . . . 1 Tool/Special . | . . . . Average Slot Usage (%) 86 | . 96 95 82 Engine 13 | . 12 21 11 Core 3 | . . . 4 Treads 12 | . . . 19 Leg 4 | . . 13 2 Wheel 5 | . 28 6 . Device 8 | . 11 11 6 Protection 11 | . 7 11 12 Energy Gun 5 | . 12 . 5 Ballistic Gun 14 | . 15 21 11 Launcher 3 | . . 9 2 Special Melee Weapon 2 | . . . 3 Peak Build Rating 23 | 6 7 15 23 Average Rating 14 | 2 6 12 17 On Entrance 7 | . 6 7 15 Avg Prop Armor Cover (%) 6 | . . . 6 Naked Turns . | . . . . Heaviest Build 35 | 12 13 26 35 Greatest Support 62 | 20 20 26 62 Greatest Overweight (x) 5 | . . 2 5 Average Overweight (x) . | . . . . Largest Inventory Capacity 8 | 8 8 5 5 Average Capacity 5 | 5 6 5 5 Most Carried 7 | 4 7 5 5 Average Carried 4 | 1 4 4 4 Final Capacity 8 | 8 5 5 5 Final Carried 5 | 4 5 5 1 Class Distribution -------------------- 33% | Tank 32% | Mutant 23% | Scavenger-Mutant 7% | Scavenger-Tank 3% | Gunner Dominant Class ---------------- Mutant | -10/Materials Tank | -9/Materials Scavenger-Mutant | -8/Materials Resources | -11 -10 -9 -8 ----------- Run | Yrd Mat Mat Mat Matter Collected 1437 | 241 57 229 910 Remotely . | . . . . Salvage Created 2047 | . 130 408 1509 Parts 111 | . 11 27 73 Haulers Intercepted 3 | . 1 1 1 Recyclers Shooed 2 | . . 2 . Parts Field Recycled . | . . . . Retrieved Matter . | . . . . Parts Self-Destructed . | . . . . Prevented . | . . . . Parts Restored . | . . . . Kills | -11 -10 -9 -8 ------- Run | Yrd Mat Mat Mat Combat Hostiles Destroyed 40 | . 3 10 27 Guns 30 | . 3 4 23 Cannons 2 | . . . 2 AOE 8 | . . 6 2 Classes Destroyed 12 | . 5 3 4 Worker 3 | . 1 . 2 Builder 3 | . . 1 2 Hauler 3 | . 1 1 1 Recycler 3 | . . . 3 Watcher 4 | . 1 2 1 Swarmer 2 | . 2 . . Cutter 2 | . . . 2 Grunt 23 | . 1 7 15 Brawler 2 | . . . 2 Duelist 2 | . . 1 1 Sentry 7 | . . 2 5 Hunter 2 | . . . 2 Best Kill Streak 6 | . 4 4 6 Combat Bots Only 5 | . 3 3 5 Max Kills in Single Turn 3 | . 1 3 3 Gunslinging . | . . . . Exploded 2 | . . 2 1 Melee . | . . . . Uniques/NPCs Destroyed . | . . . . Combat | -11 -10 -9 -8 -------- Run | Yrd Mat Mat Mat Hostile Shots Fired 293 | . 26 54 213 Missed 66 | . 7 20 39 Hits 227 | . 19 34 174 Melee 12 | . . . 12 Projectile 215 | . 19 34 162 AOE 1 | . . . 1 Critical Strikes 16 | . . 1 15 Damage Taken 3754 | . 165 447 3142 Core 645 | . 37 42 566 Absorbed by Shields . | . . . . Regen/Repaired (Parts) 33 | . 33 . . Core Remaining (%) 91 | 100 85 89 . Volleys Fired 171 | . 18 39 114 Largest 3 | . 2 2 3 Hottest 125 | . 60 46 125 Shots Fired 307 | . 36 64 207 Gun 256 | . 36 50 170 Cannon 23 | . . . 23 Launcher 28 | . . 14 14 Special . | . . . . Kinetic 191 | . 18 50 123 Thermal 88 | . 18 . 70 Explosive 28 | . . 14 14 Electromagnetic . | . . . . Robot Hit Streak 26 | . 10 5 26 Robot Miss Streak 8 | . 5 8 4 Penetration Max . | . . . . Secondary Targets 2 | . . . 2 Max Gunslinging Chain 1 | . . . 1 Shots Hit Robots 197 | . 23 29 145 Core Hits 111 | . 10 21 80 Critical Kills . | . . . . Critical Parts Destroyed 1 | . . . 1 Critical Strikes 4 | . . . 4 Burn 3 | . . . 3 Destroy 1 | . . . 1 Melee Attacks 13 | . . . 13 Impact . | . . . . Slashing . | . . . . Piercing . | . . . . Sneak Attacks 11 | . . . 11 Combat Hostiles . | . . . . Follow-up Attacks . | . . . . Damage Inflicted 4216 | . 226 1007 2983 Guns 2453 | . 224 334 1895 Cannons 268 | . . . 268 Explosions 1471 | . . 667 804 Melee . | . . . . Ramming 24 | . 2 6 16 Kinetic 1801 | . 94 334 1373 Thermal 920 | . 130 . 790 Explosive 1471 | . . 667 804 Electromagnetic . | . . . . Impact . | . . . . Slashing . | . . . . Piercing . | . . . . Highest Corruption 6 | . . . 6 Average Corruption 6 | . . . 6 Corruption Purged . | . . . . Corruption Blocked . | . . . . Effects 3 | . . . 3 Matter Fused 1 | . . . 1 Heat Flow Errors 1 | . . . 1 Energy Discharges 1 | . . . 1 Overload Shots . | . . . . Overflow Damage 31 | . . 24 7 Projectiles . | . . . . Explosions 31 | . . 24 7 Melee . | . . . . Knockbacks . | . . . . Impact . | . . . . Kinetic . | . . . . Secondary . | . . . . Self-Inflicted Damage 72 | . 1 . 71 Shots 2 | . . . 2 Rammed 2 | . 1 . 1 Targets Rammed 18 | . 1 2 15 Kicked 16 | . . 2 14 Crushed . | . . . . Highest Temperature 469 | . 61 96 469 Average Temperature 105 | . 22 33 129 Received Heat Transfer 1446 | . 30 210 1206 Effects 12 | . . . 12 Shutdowns 1 | . . . 1 Energy Bleed 3 | . . . 3 Interference 3 | . . . 3 Damage (major) 5 | . . . 5 Siege Activations . | . . . . Martial Activations . | . . . . Shielding Activations . | . . . . Robots Disrupted . | . . . . Combat Hostiles . | . . . . Robots Corrupted . | . . . . Combat Hostiles . | . . . . Parts Fried . | . . . . Impact Corruptions . | . . . . Robots Melted . | . . . . Combat Hostiles . | . . . . Parts Melted 1 | . . . 1 Heat Transferred 2150 | . 300 . 1850 Parts Sabotaged . | . . . . Parts Stolen . | . . . . Parts Stripped . | . . . . Power Chain Reactions . | . . . . Alert | -11 -10 -9 -8 ------- Run | Yrd Mat Mat Mat Maximum Alert Level 1 | . . 1 1 Low Security (%) 86 | 100 100 84 83 Level 1 13 | . . 15 16 Level 2 . | . . . . Level 3 . | . . . . Level 4 . | . . . . Level 5 . | . . . . High Security . | . . . . Max Security . | . . . . Peak Influence 241 | . 70 230 241 Initial 83 | . . 11 83 Average 94 | . 33 111 110 Influence Increases 1426 | . 113 400 913 Destroy 0b10 Robot/C 800 | . 60 200 540 Destroy 0b10 Robot/NC 80 | . 15 20 45 Destroy Leader 224 | . 24 56 144 Trap Triggered on 0b10 10 | . . . 10 Successful Hack 50 | . 14 15 21 Disable Machine 90 | . . 15 75 Destroy Structure 97 | . . 79 18 Lose Combat Pursuer 75 | . . 15 60 Influence Decreases 1213 | . 85 230 898 Entered New Map 132 | . . 17 115 Time Decay 801 | . 85 203 513 Lost Part 280 | . . 10 270 Squads Dispatched 13 | . 2 2 9 Investigation 5 | . 1 1 3 Extermination . | . . . . Reinforcement 6 | . 1 1 4 Assault . | . . . . Garrison 2 | . . . 2 Intercept . | . . . . Searches Triggered . | . . . . Construction Impeded 1 | . . . 1 Haulers Reinforced . | . . . . Active Scanning Responses . | . . . . Cargo Convoy Interrupts . | . . . . Stealth | -11 -10 -9 -8 --------- Run | Yrd Mat Mat Mat Distress Signals 4 | . . 1 3 Communications Jammed . | . . . . Distress Signals . | . . . . Times Spotted 67 | . 9 14 44 Peak Tracking Total 7 | . 5 5 7 Tactical Retreats 3 | . . 1 2 Traps | -11 -10 -9 -8 ------- Run | Yrd Mat Mat Mat Traps Triggered 2 | . . 2 . Indirectly . | . . . . Trap Hack Attempts 25 | . . . 25 Triggered . | . . . . Disarmed . | . . . . Reprogrammed 6 | . . . 6 Reused 1 | . . . 1 Traps Extracted . | . . . . Installed . | . . . . Triggered 1 | . . . 1 Machines | -11 -10 -9 -8 ---------- Run | Yrd Mat Mat Mat Machines Disabled 6 | . . 1 5 Max in Single Turn 2 | . . 1 2 Machines Repaired . | . . . . Machines Dismantled . | . . . . Machines Sabotaged . | . . . . Overloaded Fab Kills . | . . . . Hacking | -11 -10 -9 -8 --------- Run | Yrd Mat Mat Mat Machines Accessed 9 | . 3 1 5 Terminals 6 | . 2 1 3 Fabricators . | . . . . Repair Stations 1 | . 1 . . Recycling Units 1 | . . . 1 Scanalyzers 1 | . . . 1 Garrison Access . | . . . . Total Hacks 37 | . 11 5 21 Successful 27 | . 7 4 16 Failed 9 | . 4 1 4 Catastrophic 1 | . . . 1 Database Lockouts 1 | . . . 1 Manual . | . . . . Terminals 26 | . 7 5 14 Fabricators . | . . . . Repair Stations 4 | . 4 . . Recycling Units 3 | . . . 3 Scanalyzers 4 | . . . 4 Garrison Access . | . . . . Terminal Hacks 19 | . 4 4 11 Record 3 | . 2 . 1 Robot Analysis 1 | . 1 . . Prototype ID Bank 2 | . . . 2 Emergency Access Points 1 | . . 1 . Alert Level 2 | . . 1 1 Locate Traps 3 | . . 1 2 Reprogram Traps 1 | . . . 1 Dispatch Records 1 | . . . 1 Surveillance Status 1 | . 1 . . Transport Status 1 | . . . 1 Reinforcement Status 1 | . . . 1 Hauler Manifests 1 | . . . 1 Registered Components 1 | . . 1 . Fabricator Hacks . | . . . . Repair Station Hacks 3 | . 3 . . Scan Component 1 | . 1 . . Repair 1 | . 1 . . Refit 1 | . 1 . . Recycling Unit Hacks 2 | . . . 2 Report Inventory 1 | . . . 1 Retrieve Matter 1 | . . . 1 Scanalyzer 3 | . . . 3 Insert Component 1 | . . . 1 Analyze 1 | . . . 1 Retrieve Study 1 | . . . 1 Garrison Access Hacks . | . . . . Unauthorized Hacks . | . . . . Terminals . | . . . . Fabricators . | . . . . Repair Stations . | . . . . Recycling Units . | . . . . Scanalyzers . | . . . . Garrison Access . | . . . . Data Cores Recovered . | . . . . Used . | . . . . Hacking Detections 9 | . 3 1 5 Full Trace Events 6 | . 2 1 3 Feedback Events . | . . . . Feedback Blocked . | . . . . Robot Schematics Acquired . | . . . . Robots Built . | . . . . Authchips . | . . . . Time . | . . . . Total Robot Build Rating . | . . . . Part Schematics Acquired 1 | . . . 1 Parts Built . | . . . . Authchips . | . . . . Time . | . . . . Total Part Build Rating . | . . . . Part Studies Acquired 1 | . . . 1 Parts Repaired 1 | . 1 . . Time 26 | . 26 . . Parts Recycled . | . . . . Recycled Matter . | . . . . Retrieved Matter . | . . . . Retrieved Components . | . . . . Parts Scanalyzed 1 | . . . 1 Part Schematics Acquired 1 | . . . 1 Parts Damaged . | . . . . Bothacking | -11 -10 -9 -8 ------------ Run | Yrd Mat Mat Mat Used RIF Installer . | . . . . Robots Hacked 6 | . . . 6 Non-combat 4 | . . . 4 Combat 2 | . . . 2 Robot Hacks Applied 9 | . . . 9 parse_system 3 | . . . 3 no_distress 4 | . . . 4 find_recycling 2 | . . . 2 Relay Couplers Released . | . . . . Fabnet Peak Effective % . | . . . . Robots Rewired . | . . . . Allies Hacked . | . . . . Hacks Repelled . | . . . . Allies | -11 -10 -9 -8 -------- Run | Yrd Mat Mat Mat Total Allies . | . . . . Largest Group . | . . . . Highest-Rated Group . | . . . . Highest-Rated Ally . | . . . . Total Orders . | . . . . Ally Attacks . | . . . . Total Damage . | . . . . Kills . | . . . . Allies Corrupted . | . . . . Allies Melted . | . . . . Intel | -11 -10 -9 -8 ------- Run | Yrd Mat Mat Mat Active Infowar (turns) 881 | . 202 462 217 Sensors 881 | . 202 462 217 Robot Analysis Total 1 | . 1 . . Derelict Logs Recovered . | . . . . Drone Launches . | . . . . Drone Recoveries . | . . . . Exploration | -11 -10 -9 -8 ------------- Run | Yrd Mat Mat Mat Turns Passed 2283 | 161 238 462 1422 Spaces Moved 1344 | 249 183 296 616 Core 202 | 176 . . 26 Treads 499 | . . . 499 Legs 244 | . . 186 58 Wheels 399 | 73 183 110 33 Hover . | . . . . Flight . | . . . . Fastest Speed 50 | 50 80 80 50 Average Speed 118 | 58 80 111 157 Slowest Speed 300 | 80 80 190 300 Overloaded Moves . | . . . . Propulsion Burnouts . | . . . . Robots Hopped . | . . . . Potential Cave-ins . | . . . . Cave-ins Triggered . | . . . . Exploration Rate (%) 22 | 7 26 22 34 Regions Visited 3 Branch Regions . Pre-discovered Areas . | . . . . Known Exits Taken . | . . . . Unknown Exits Taken 3 | 1 1 1 . Scrap Searched . | . . . . Spaces Dug . | . . . . Terrain Destroyed 112 | . . 96 16 Melee . | . . . . Projectile . | . . . . AOE 112 | . . 96 16 Terrain Rammed . | . . . . Walls Destroyed . | . . . . Machines Disabled . | . . . . Actions | -11 -10 -9 -8 --------- Run | Yrd Mat Mat Mat Total 1718 | 261 241 365 851 Wait 47 | . 28 1 18 Move 1341 | 248 182 295 616 Hop . | . . . . Pick Up 23 | 7 5 5 6 Fast Attach 38 | 3 2 12 21 Attach 14 | 3 1 2 8 Detach . | . . . . Swap 5 | . 1 . 4 Drop 23 | . 3 9 11 Fire 171 | . 18 39 114 Melee 13 | . . . 13 Ram 1 | . 1 . . Kick 16 | . . 2 14 Crush 1 | . . . 1 Escape Stasis . | . . . . Rewire . | . . . . Trap 25 | . . . 25 Miscellaneous . | . . . . Route ------- -11/Scrapyard -10/Materials -9/Materials -8/Materials History --------- Turn | Location | Event 50 | -11/Scrapyard | Discovered new exit (range 15) 162 | -11/Scrapyard | Entered Materials 320 | -10/Materials | Build established: Mutant 348 | -10/Materials | Repaired Ion Engine 363 | -10/Materials | Discovered new exit (range 4) 400 | -10/Materials | Entered another Materials area 400 | -9/Materials | Evolved 2 slots: Power x1, Weapon x1 708 | -9/Materials | Build established: Tank 806 | -9/Materials | Discovered new exit (range 16) 862 | -9/Materials | Entered another Materials area 862 | -8/Materials | Evolved 2 slots: Propulsion x1, Utility x1 1011 | -8/Materials | Central database locked down 1730 | -8/Materials | Build established: Scavenger-Mutant 1996 | -8/Materials | Garrison activated, responded to threat 2044 | -8/Materials | Core integrity fell below 50% 2098 | -8/Materials | Lost 12 parts (2p3n3u4w) 2229 | -8/Materials | Lost 7 parts (1p2n1u3w) 2249 | -8/Materials | Garrison activated, responded to threat 2252 | -8/Materials | Core integrity fell below 20% 2284 | -8/Materials | Destroyed by G-47 Trooper with Particle Gun Last Messages --------------- 02251_ System corrupted: Heat flow error (+167). 02256_ G-47 Trooper heat short circuits Lgt. Nuclear Core. 02258_ G-47 Trooper destroyed. 02264_ R-06 Scavenger collects Particle Gun. 02264_ Particle Gun destroyed. 02268_ Beam Cannon destroyed. 02269_ Acquired 36 matter. 02270_ Kicked G-47 Trooper. 02271_ Critical hit (Burn: +37). 02271_ Kicked G-47 Trooper out of the way. 02273_ Kicked G-47 Trooper. 02277_ Critical hit (Burn: +37). 02277_ Kicked G-47 Trooper. 02279_ Kicked G-47 Trooper out of the way. 02280_ Kicked G-47 Trooper. 02282_ K-01 Serf collects debris. 02282_ Kicked G-47 Trooper. 02283_ Critical hit (Burn: +37). 02283_ Kicked U-05 Engineer. Map ----- +----------------------------------------------------+ | ????????????????????????# !! ????????????????????? | | ????????????????????????# !! ????????????????????? | | ????????????????????????# !! ???????????????????? | | ????????????????????????? ??????????????????#? | | ??????????????????????????? ################# #? | | ???????????????#####+######+# # #? | | ??????????????? #? | | ####??????????? #? | | + ???????????? """ "" ! #? | | # #?????##+????# """ " | | # #???? ????# """ " ## ####### | | # +?? ?????# #????????? | | # #? """"??????+ #####????????? | | # # """""?????# """ ###??????????? | | + """""?????# """ k" % " ""#??????????? | | #+#########?????# """ "#??????????? | | #???######## ""#??????????? | | "" #???# # u % ###??????????? | | "T #???# # "#????????????? | | "" #???# + | T#????????????? | | #???# ! # " "#????????????? | | #???# # #????????????? | | ######???# + u =[ !#????????????? | | ?????????#########+######g###### !%#????????????? | | ?????????????# #g# # ????????? | | ?????????????# """ ##@%% # ?????? | | ?????????????#! G" ##g# # #????? | | ?????????????# """ ## # ####+### ?????? | | ?????????????# """ ## # #???????# #?????? | | ?????????????# """ ## # #???????? ??????? | | ##???????????# """ ##a# #?????????? ??????? | | #???????????# ## # #?????????????????? | | #???????????############ # #?????????????????? | | #??????????????????????# ########???????????????? | | ####??????????#?????????# # #???????????????? | | #?????????? ##???????# + """ #???????????????? | | #?????????? ???????# # "Y" #???????????????? | | +??????????# #???????# # #???????????????? | | #??????????# #???????# # #???????????????? | | #??????????# #???????# # #???????????????? | | ## #??????????# #???????# ########???????????????? | | ?# #??????????# #???????# #######????????????????? | | ?# #?????????## ##?????## #* ####### ??????? | | ?# #?????????# ! #######" " ! ] ??????? | | ?# ###########[=! % % % ??????? | | ?# !%=!%########## ??????? | | ?#################????????" = ####### ??????? | | ??????????????????????????#######????????????????? | | ?????????????????????????????????????????????????? | | ?????????????????????????????????????????????????? | +----------------------------------------------------+ Best States ------------- Heat Dissipation 59 Energy Generation 23 Energy Capacity 425 Matter Stores 300 Matter Capacity 300 Sight Range 16 Robot Scan Range 14 Terrain Scan Density 10 Armor Coverage 375 Evasion (%) 55 Recoil Reduction 3 Trap Extractor Capacity 4 Item Schematics ----------------- Imp. Terrain Scan Processor | -8/Materials | Scanalyzed Robot Schematics ------------------ None Fabricated ------------ Nothing Repaired ---------- Ion Engine | 45% | -10/Materials Studied --------- Hvy. Assault Rifle | -8/Materials | Hacked Alien Tech Used ----------------- None Achievements -------------- DATA ERROR: Steam Global Achievement% Fitting Room For Emergencies Only Ghost 'Em Heavy Suspicion Hydra Item+ Junior Dev Not Today, Chutes Organ Harvest There's More Where That Came From Challenges ------------ None Game ------ Seed QuantumWarlordShockpuncher Manual? 0 Play Time 00:51:51 Cumulative 7.4 hours Start 2025.10.29 @ 21:23:09 End 2025.10.29 @ 22:25:58 Sessions 1 Manual Loads 0 Difficulty Rogue Special Mode None Game No. 13 Rogue 10 Adventurer 3 Explorer 0 Win Type - Total 0 Types 0/0/0/0/0/0/0/0/0/0 Lore% 5 Gallery% 13 Achievement% 9 Wizard Run 0 Options --------- Layout 1 ASCII 0 Keyboard 0 Movement Arrows Keybinds 0 Fullscreen 1 Font 24/Smallcaps Map View 50x35 Zoom Use 0% Tactical HUD 1 Map Filters NONE Filters NONE Steam 1 RUN: fab01b08-5d0a-48e9-adbd-6c6c05ec9b4d